Cogmind - Beta 15 @@@ ROGUE MODE // 2025.07.13 @ 21:45:28 Player: anisdrin Result: Destroyed by S-10 Pest with Light Assault Rifle Performance ------------- Evolutions (0) 0 Regions Visited (1) 200 Robots Destroyed (15) 75 Value Destroyed (349) 349 Prototype IDs (2) 40 Alien Tech Used (0) 0 Bonus (0) 0 TOTAL SCORE: 664 Bonus ------- None Cogmind --------- Core Integrity 0/250 Matter 300/300 Energy 230/250 System Corruption 0% Temperature Cool (9) Movement Walking (260) Ox2 Location -10/Materials Parts ------- > --- POWER (1) -------- Ion Engine > --- PROPULSION (2) --- Aluminum Leg > --- UTILITY (2) ------ Heat Sink Large Storage Unit > --- WEAPON (2) ------- Medium Laser Medium Laser > --- INVENTORY (15) --- Light Ion Engine Light Treads Light Treads Compact Wheel Hover Unit Small Storage Unit Large Battery (200) High-capacity Battery (250) Large Matter Pod (145) Visual Processing Unit Sensor Array Small Laser Datajack Mining Laser Mining Laser Peak State ------------ > --- POWER ------------ Ion Engine > --- PROPULSION ------- Compact Wheel Compact Wheel > --- UTILITY ---------- Large Storage Unit Visual Processing Unit > --- WEAPON ----------- Assault Rifle Light Assault Rifle > --- INVENTORY -------- Light Treads Light Treads Aluminum Leg Aluminum Leg Hover Unit Small Storage Unit High-capacity Battery Large Matter Pod Visual Processing Unit Light Assault Rifle Mining Laser Mining Laser [Rating: 9] Favorites ----------- Power Ion Engine Engine Ion Engine Propulsion Aluminum Leg Leg Aluminum Leg Wheel Compact Wheel Utility Large Storage Unit Device Heat Sink Storage Large Storage Unit Processor Visual Processing Unit Weapon Medium Laser Energy Gun Medium Laser Ballistic Gun Light Assault Rifle Build | -11 -10 ------- Run | Yrd Mat Slots Evolved . | . . Power . | . . Propulsion . | . . Utility . | . . Weapon . | . . Parts Attached 15 | 6 9 Power 2 | 1 1 Engine 2 | 1 1 Core . | . . Reactor . | . . Propulsion 4 | 2 2 Treads . | . . Leg 2 | . 2 Wheel 2 | 2 . Hover . | . . Flight . | . . Utility 5 | 1 4 Device 2 | . 2 Storage 2 | 1 1 Processor 1 | . 1 Hackware . | . . Protection . | . . Artifact . | . . Weapon 4 | 2 2 Energy Gun 2 | . 2 Energy Cannon . | . . Ballistic Gun 2 | 2 . Ballistic Cannon . | . . Launcher . | . . Special Weapon . | . . Impact Weapon . | . . Slashing Weapon . | . . Piercing Weapon . | . . Special Melee Weapon . | . . Unidentified Prototypes . | . . Parts Lost 4 | . 4 Power 1 | . 1 Propulsion 2 | . 2 Utility 1 | . 1 Weapon . | . . Highest Loss Streak 3 | . 3 To Critical Strikes . | . . Average Backups 10 | 2 11 Power . | . . Propulsion 3 | 1 4 Utility 4 | . 4 Weapon 2 | . 2 Tool/Special . | . . Unused Backups 15 | . 15 Power 1 | . 1 Propulsion 3 | . 3 Utility 6 | . 6 Weapon 4 | . 4 Tool/Special 1 | . 1 Average Slot Usage (%) 97 | . 97 Engine 13 | . 13 Leg 18 | . 18 Wheel 8 | . 8 Device 12 | . 12 Storage 14 | . 14 Energy Gun 18 | . 18 Ballistic Gun 9 | . 9 Peak Build Rating 9 | 6 9 Average Rating 7 | 3 7 On Entrance 3 | . 6 Naked Turns . | . . Heaviest Build 30 | 11 30 Greatest Support 32 | 32 32 Greatest Overweight (x) 2 | . 2 Average Overweight (x) . | . . Largest Inventory Capacity 15 | 8 15 Average Capacity 14 | 7 14 Most Carried 15 | 6 15 Average Carried 11 | 2 12 Final Capacity 15 | 8 15 Final Carried 15 | 6 15 Class Distribution -------------------- 100% | Mutant Dominant Class ---------------- Mutant | -10/Materials Resources | -11 -10 ----------- Run | Yrd Mat Matter Collected 569 | 159 410 Remotely . | . . Salvage Created 435 | . 435 Parts 23 | . 23 Haulers Intercepted . | . . Recyclers Shooed 1 | . 1 Parts Field Recycled . | . . Retrieved Matter . | . . Parts Self-Destructed . | . . Prevented . | . . Kills | -11 -10 ------- Run | Yrd Mat Combat Hostiles Destroyed 12 | . 12 Guns 12 | . 12 Classes Destroyed 3 | . 3 Watcher 3 | . 3 Swarmer 5 | . 5 Grunt 7 | . 7 Best Kill Streak 5 | . 5 Combat Bots Only 5 | . 5 Max Kills in Single Turn 1 | . 1 Gunslinging . | . . Exploded . | . . Melee . | . . Uniques/NPCs Destroyed . | . . Combat | -11 -10 -------- Run | Yrd Mat Hostile Shots Fired 120 | . 120 Missed 28 | . 28 Hits 92 | . 92 Projectile 92 | . 92 Critical Strikes 1 | . 1 Damage Taken 877 | . 877 Core 256 | . 256 Absorbed by Shields . | . . Core Remaining (%) 100 | 100 . Volleys Fired 49 | . 49 Largest 2 | . 2 Hottest 100 | . 100 Shots Fired 97 | . 97 Gun 97 | . 97 Cannon . | . . Launcher . | . . Special . | . . Kinetic 39 | . 39 Thermal 58 | . 58 Explosive . | . . Electromagnetic . | . . Robot Hit Streak 13 | . 13 Robot Miss Streak 4 | . 4 Penetration Max . | . . Secondary Targets 2 | . 2 Max Gunslinging Chain 1 | . 1 Shots Hit Robots 59 | . 59 Core Hits 25 | . 25 Critical Kills . | . . Critical Parts Destroyed 1 | . 1 Critical Strikes 3 | . 3 Burn 2 | . 2 Destroy 1 | . 1 Melee Attacks . | . . Impact . | . . Slashing . | . . Piercing . | . . Sneak Attacks . | . . Combat Hostiles . | . . Follow-up Attacks . | . . Damage Inflicted 700 | . 700 Guns 693 | . 693 Cannons . | . . Explosions . | . . Melee . | . . Ramming 7 | . 7 Kinetic 257 | . 257 Thermal 436 | . 436 Explosive . | . . Electromagnetic . | . . Impact . | . . Slashing . | . . Piercing . | . . Highest Corruption . | . . Average Corruption . | . . Corruption Purged . | . . Corruption Blocked . | . . Overload Shots . | . . Overflow Damage . | . . Projectiles . | . . Explosions . | . . Melee . | . . Knockbacks . | . . Impact . | . . Kinetic . | . . Secondary . | . . Self-Inflicted Damage . | . . Shots . | . . Rammed . | . . Targets Rammed 1 | . 1 Kicked 1 | . 1 Crushed . | . . Highest Temperature 102 | . 102 Average Temperature 41 | . 41 Received Heat Transfer 246 | . 246 Siege Activations . | . . Martial Activations . | . . Shielding Activations . | . . Robots Disrupted . | . . Combat Hostiles . | . . Robots Corrupted . | . . Combat Hostiles . | . . Parts Fried . | . . Impact Corruptions . | . . Robots Melted . | . . Combat Hostiles . | . . Parts Melted 3 | . 3 Heat Transferred 1443 | . 1443 Parts Sabotaged . | . . Parts Stolen . | . . Parts Stripped . | . . Power Chain Reactions . | . . Alert | -11 -10 ------- Run | Yrd Mat Maximum Alert Level . | . . Low Security (%) 100 | 100 100 Level 1 . | . . Level 2 . | . . Level 3 . | . . Level 4 . | . . Level 5 . | . . High Security . | . . Max Security . | . . Peak Influence 82 | . 82 Initial . | . . Average 23 | . 26 Influence Increases 343 | . 343 Destroy 0b10 Robot/C 240 | . 240 Destroy 0b10 Robot/NC 15 | . 15 Destroy Leader 56 | . 56 Successful Hack 2 | . 2 Lose Combat Pursuer 30 | . 30 Influence Decreases 241 | . 241 Time Decay 211 | . 211 Lost Part 30 | . 30 Squads Dispatched 2 | . 2 Investigation 1 | . 1 Extermination . | . . Reinforcement 1 | . 1 Assault . | . . Garrison . | . . Intercept . | . . Searches Triggered . | . . Construction Impeded . | . . Haulers Reinforced . | . . Active Scanning Responses . | . . Cargo Convoy Interrupts . | . . Stealth | -11 -10 --------- Run | Yrd Mat Distress Signals . | . . Communications Jammed . | . . Distress Signals . | . . Times Spotted 20 | . 20 Peak Tracking Total 4 | . 4 Tactical Retreats 2 | . 2 Traps | -11 -10 ------- Run | Yrd Mat Traps Triggered . | . . Indirectly . | . . Trap Hack Attempts . | . . Triggered . | . . Disarmed . | . . Reprogrammed . | . . Reused . | . . Traps Extracted . | . . Installed . | . . Triggered . | . . Machines | -11 -10 ---------- Run | Yrd Mat Machines Disabled . | . . Max in Single Turn . | . . Machines Repaired . | . . Machines Dismantled . | . . Machines Sabotaged . | . . Overloaded Fab Kills . | . . Hacking | -11 -10 --------- Run | Yrd Mat Machines Accessed 4 | . 4 Terminals 3 | . 3 Fabricators . | . . Repair Stations 1 | . 1 Recycling Units . | . . Scanalyzers . | . . Garrison Access . | . . Total Hacks 13 | . 13 Successful 7 | . 7 Failed 6 | . 6 Catastrophic 1 | . 1 Database Lockouts . | . . Manual 2 | . 2 Terminals 11 | . 11 Fabricators . | . . Repair Stations 2 | . 2 Recycling Units . | . . Scanalyzers . | . . Garrison Access . | . . Terminal Hacks 7 | . 7 Record 4 | . 4 Prototype ID Bank 1 | . 1 Investigation Status 1 | . 1 Hauler Manifests 1 | . 1 Fabricator Hacks . | . . Repair Station Hacks . | . . Recycling Unit Hacks . | . . Scanalyzer . | . . Garrison Access Hacks . | . . Unauthorized Hacks . | . . Terminals . | . . Fabricators . | . . Repair Stations . | . . Recycling Units . | . . Scanalyzers . | . . Garrison Access . | . . Data Cores Recovered . | . . Used . | . . Hacking Detections 4 | . 4 Full Trace Events 1 | . 1 Feedback Events . | . . Feedback Blocked . | . . Robot Schematics Acquired . | . . Robots Built . | . . Authchips . | . . Time . | . . Total Robot Build Rating . | . . Part Schematics Acquired . | . . Parts Built . | . . Authchips . | . . Time . | . . Total Part Build Rating . | . . Parts Repaired . | . . Time . | . . Parts Recycled . | . . Recycled Matter . | . . Retrieved Matter . | . . Retrieved Components . | . . Parts Scanalyzed . | . . Part Schematics Acquired . | . . Parts Damaged . | . . Bothacking | -11 -10 ------------ Run | Yrd Mat Used RIF Installer . | . . Robots Hacked . | . . Non-combat . | . . Combat . | . . Robot Hacks Applied . | . . Relay Couplers Released . | . . Fabnet Peak Effective % . | . . Robots Rewired . | . . Allies Hacked . | . . Hacks Repelled . | . . Allies | -11 -10 -------- Run | Yrd Mat Total Allies . | . . Largest Group . | . . Highest-Rated Group . | . . Highest-Rated Ally . | . . Total Orders . | . . Ally Attacks . | . . Total Damage . | . . Kills . | . . Allies Corrupted . | . . Allies Melted . | . . Intel | -11 -10 ------- Run | Yrd Mat Active Infowar (turns) 198 | . 198 Optics 33 | . 33 Terrain 165 | . 165 Robot Analysis Total . | . . Derelict Logs Recovered . | . . Drone Launches . | . . Drone Recoveries . | . . Exploration | -11 -10 ------------- Run | Yrd Mat Turns Passed 798 | 84 714 Spaces Moved 394 | 51 343 Core 5 | 5 . Treads . | . . Legs 199 | . 199 Wheels 190 | 46 144 Hover . | . . Flight . | . . Fastest Speed 50 | 50 100 Average Speed 145 | 95 153 Slowest Speed 260 | 100 260 Overloaded Moves . | . . Propulsion Burnouts . | . . Robots Hopped . | . . Potential Cave-ins . | . . Cave-ins Triggered . | . . Exploration Rate (%) 30 | 4 56 Regions Visited 1 Branch Regions . Pre-discovered Areas . | . . Known Exits Taken . | . . Unknown Exits Taken 1 | 1 . Scrap Searched . | . . Spaces Dug . | . . Terrain Destroyed . | . . Melee . | . . Projectile . | . . AOE . | . . Terrain Rammed . | . . Walls Destroyed . | . . Machines Disabled . | . . Actions | -11 -10 --------- Run | Yrd Mat Total 532 | 87 445 Wait 33 | 17 16 Move 393 | 50 343 Hop . | . . Pick Up 30 | 12 18 Fast Attach . | . . Attach 17 | 7 10 Detach 5 | 1 4 Swap . | . . Drop 4 | . 4 Fire 49 | . 49 Melee . | . . Ram . | . . Kick 1 | . 1 Crush . | . . Escape Stasis . | . . Rewire . | . . Trap . | . . Miscellaneous . | . . Route ------- -11/Scrapyard -10/Materials (discovered 3 exits: [*Mat] / [*Min x2]) History --------- Turn | Location | Event 48 | -11/Scrapyard | Discovered new exit (range 16) 85 | -11/Scrapyard | Entered Materials 150 | -10/Materials | Discovered new exit (range 7) 309 | -10/Materials | Build established: Mutant 317 | -10/Materials | Lost 3 parts (1p1n1u) 395 | -10/Materials | Discovered new exit (range 11) 608 | -10/Materials | Discovered new exit (range 7) 627 | -10/Materials | Core integrity fell below 50% 785 | -10/Materials | Core integrity fell below 20% 799 | -10/Materials | Destroyed by S-10 Pest with Light Assault Rifle Last Messages --------------- R-06 Scavenger collects Heat Sink. K-01 Serf collects debris. Critical hit (Burn: +37). Particle Gun melted. G-47 Trooper destroyed. Acquired 55 matter. K-01 Serf collects debris. Connecting with Repair Station... K-01 Serf cleans the Repair Station. G-34 Mercenary suffers critical hit (Burn). Heat Sink melted. G-34 Mercenary destroyed. Acquired 33 matter. Aluminum Leg destroyed. Destroyed Flight Unit. S-10 Pest overheating. S-10 Pest destroyed. Switching to secondary target: S-10 Pest. Acquired 10 matter. S-10 Pest destroyed. Map ----- +----------------------------------------------------+ | | | | | | | | | ?????????????????????????????????????????????????? | | ?????????????????????????????????????????????????? | | ?????????????????????????????????????????????????? | | ?????????????????????????????????????????????????? | | ?????????????????????????????????????????????????? | | ?????????????????????????????????????????????????? | | ?????????????????????????????????????????????????? | | ?????????????????????????????????????????????????? | | ????###########+########+##??????????????????????? | | ????# ??????????????????????? | | ????# ??????????????????????? | | ????# ??????????????????????? | | ????######+##### """ ??????????????????????? | | ????????# # """ ??????????????????????? | | ????????# # """ #???######?????????????? | | ????????#""" + """ #?? #?????????????? | | ????????#""" # """ #? #?????????????? | | ????????#""" # # #?????????????? | | ??#???#?# # = # #?????????????? | | ??########+##### ^"""%s/ #?????????????? | | ??# # ^"""* # +?????????????? | | ??# """ # ^^""" @#?? #?????????????? | | ??# """ + """ #???? #?????????????? | | ??# "T" """ # """ #?????? #?????????????? | | ??# """ # #????????#?????????????? | | ??############## #??????????????????????? | | ???????????????#######/#######???????????????????? | | ???????????????? # t #???????????????????? | | ?????????"?????"?# """ #???????????????????? | | ???????????????? # """ """ #???????????????????? | | ?????????????????# """ R" #???????????????????? | | ?????? ????? ?? # """ #???????????????????? | | ???????????? ?? # ##??####????????????? | | ????????? ???? ##########+##?? ?????????????? | | ##############+### ## ### !!!#???????????? | | # !! #???????????? | | ^ < + !! #???????????? | | ^ #? ???????????????? | | """^ """ [[ ## ## #? ???????????????? | | """ """ [[! ## " " " ## ##+#########+##????? | | """ """ ! T#""|"|""## ????? | | ########### ????? | | = =#?????????# ????? | | ######+#####??????#### ##########??????? | | #?# [[ #?????????# #???????????????? | | #?# = ""##????????# #???????????????? | +----------------------------------------------------+ Best States ------------- Heat Dissipation 35 Energy Generation 10 Energy Capacity 250 Matter Stores 300 Matter Capacity 300 Sight Range 18 Terrain Scan Range 14 Terrain Scan Density 10 Evasion (%) 50 Item Schematics ----------------- None Robot Schematics ------------------ None Fabricated ------------ Nothing Repaired ---------- Nothing Alien Tech Used ----------------- None Achievements -------------- None Challenges ------------ None Game ------ Seed StormThunderLoader Manual? 0 Play Time 00:27:34 Cumulative 9.9 hours Start 2025.07.13 @ 21:18:16 End 2025.07.13 @ 21:45:28 Sessions 1 Manual Loads 0 Difficulty Rogue Special Mode None Game No. 23 Rogue 23 Adventurer 0 Explorer 0 Win Type - Total 0 Types 0/0/0/0/0/0/0/0/0/0 Lore% 2 Gallery% 12 Achievement% 4 Wizard Run 0 Options --------- Layout 1 ASCII 0 Keyboard 0 Movement Mouse Keybinds 0 Fullscreen 1 Font 24/Smallcaps Map View 50x35 Zoom Use 72% Tactical HUD 0 Map Filters NONE Filters NONE Steam 1 RUN: 439cda43-0708-49b6-b0b0-7c929b87b24c